bitfinex-derivatives/quotes_SOLF0:USTF0_20240827
["timestamp","ask_amount","ask_price","bid_price","bid_amount"]
[1724755754098,0.04154009,153.99,153.96,0.04335151]
[1724755754297,3.28804009,153.99,153.96,0.04335151]
[1724755754498,0.04154009,153.99,153.96,0.04335151]
[1724755755997,3.2468,153.98,153.96,0.04335151]
[1724755756198,0.04154009,153.99,153.96,0.04335151]
[1724755756704,0.04154009,153.99,153.96,3.29045151]
[1724755756898,0.04154009,153.99,153.96,0.04335151]
[1724755757304,3.2467,153.98,153.96,0.04335151]
[1724755759506,3.2468,153.97,153.96,0.04335151]
[1724755760203,11.2368,153.97,153.96,0.04335151]
[1724755760803,3.3551,154.02,153.89,13.13]
[1724755760804,7.99,153.96,153.89,13.13]
[1724755761310,3.2476,153.94,153.9,3.2483]
[1724755761601,7.99,153.96,153.88,5.12]
[1724755761799,3.2477,153.94,153.89,3.2484]
[1724755761996,3.28950956,153.94,153.9,0.04579868]
[1724755762402,0.04180956,153.94,153.9,3.29389868]
[1724755762602,0.04180956,153.94,153.9,23.26389868]
[1724755762798,0.04180956,153.94,153.91,3.31783412]
[1724755763400,0.04180956,153.94,153.91,6.56583412]
[1724755764707,0.04180956,153.94,153.92,3.2477]
[1724755765911,0.04180956,153.94,153.91,6.56583412]
[1724755766109,0.04180956,153.94,153.91,3.248]
[1724755767708,0.04180956,153.94,153.91,6.55284753]
[1724755772517,0.04180956,153.94,153.92,19.97]
[1724755773315,0.04180956,153.94,153.93,3.2477]
[1724755774516,3.2464,154.0,153.96,19.97]
[1724755775210,25.1018,154.02,153.93,5.12]
[1724755775411,0.04825907,153.99,153.96,0.04575462]
[1724755775809,3.2468,153.97,153.96,0.04575462]
[1724755777611,0.04825907,153.99,153.96,0.04575462]
[1724755779312,3.29475907,153.99,153.96,0.04575462]
[1724755780710,3.2467,153.98,153.96,0.04575462]
[1724755781112,0.04825907,153.99,153.96,0.04575462]
[1724755782414,3.2468,153.98,153.96,0.04575462]
[1724755783114,19.97,153.97,153.86,21.6639]
[1724755783319,19.97,153.95,153.86,5.12]
[1724755783508,19.97,153.95,153.87,3.2489]
[1724755783914,19.97,153.95,153.86,5.12]
[1724755784109,0.04855071,153.93,153.89,0.04509849]
[1724755784619,3.2481,153.92,153.89,0.04509849]
[1724755785119,0.04855071,153.93,153.89,0.04509849]
[1724755785709,0.04855071,153.93,153.9,3.2483]
[1724755785914,0.04855071,153.93,153.89,0.04509849]
[1724755786415,0.04855071,153.93,153.91,19.97]
[1724755786717,0.04855071,153.93,153.92,3.2479]
[1724755787109,0.04855071,153.93,153.91,26.47141081]
[1724755787520,0.04855071,153.93,153.91,23.218]
[1724755787818,0.04855071,153.93,153.89,0.04509849]
[1724755787819,0.04855071,153.93,153.89,3.29349849]
[1724755788016,0.04855071,153.93,153.89,0.04509849]
[1724755788821,3.29635071,153.93,153.89,0.04509849]
[1724755789019,0.04855071,153.93,153.89,0.04509849]
[1724755789619,3.248,153.92,153.89,0.04509849]
[1724755790119,3.29635071,153.93,153.89,0.04509849]
[1724755793123,0.04855071,153.93,153.89,0.04509849]
[1724755794122,0.04855071,153.93,153.89,3.29349849]
[1724755794525,0.04855071,153.93,153.9,23.2183]
[1724755794719,0.04855071,153.93,153.9,19.97]
[1724755795419,0.04855071,153.93,153.91,3.248]
[1724755797121,0.04855071,153.93,153.92,3.2479]
[1724755797323,0.04855071,153.93,153.92,23.2179]
[1724755797522,0.04855071,153.93,153.92,19.97]
[1724755797719,0.04855071,153.93,153.89,0.04509849]
[1724755797922,0.04855071,153.93,153.91,23.218]
[1724755799722,0.04855071,153.93,153.92,3.2479]
[1724755799928,3.5083,153.99,153.92,19.97]
[1724755799929,1.6976,153.99,153.92,19.97]
[1724755800117,1.6976,153.99,153.95,19.97]
[1724755800322,4.9442,153.99,153.95,19.97]
[1724755800824,4.9442,153.99,153.95,20.01960249]
[1724755801023,1.74209985,153.99,153.95,20.01960249]
[1724755801323,1.74209985,153.99,153.95,0.04960249]
[1724755801624,3.2471,153.96,153.95,0.04960249]
[1724755806224,1.74209985,153.99,153.95,0.04960249]
[1724755806833,3.2468,153.98,153.95,0.04960249]
[1724755808024,0.04449985,153.99,153.95,0.04960249]
[1724755808525,3.29109985,153.99,153.95,3.29670249]
[1724755809926,3.2466,153.98,153.95,3.29670249]
[1724755810727,0.04449985,153.99,153.95,0.04960249]
[1724755810927,0.04449985,153.99,153.97,19.97]
[1724755811527,0.04449985,153.99,153.95,20.01960249]
[1724755811725,0.04449985,153.99,153.96,3.2469]
[1724755813328,0.04449985,153.99,153.97,3.2468]
[1724755814836,0.04449985,153.99,153.96,3.247]
[1724755815424,224.0,154.18,153.99,19.97]
[1724755815634,224.0,154.18,153.92,23.6063]
[1724755815635,3.4946,154.11,154.01,19.97]
[1724755815827,3.2445,154.08,154.03,19.97]
[1724755816027,6.4841,154.2,154.03,19.97]
[1724755816028,1.7385,154.15,154.06,19.97]
[1724755816236,1.7385,154.15,154.06,5.1]
[1724755816428,0.04655076,154.12,154.11,19.97]
[1724755816627,0.04950144,154.13,154.11,23.144128]
[1724755816936,0.04962709,154.14,154.13,3.2434]
[1724755817136,0.04534553,154.15,154.13,3.2434]
[1724755817438,0.04534553,154.15,154.12,20.01482092]
[1724755817634,0.04534553,154.15,154.12,0.04482092]
[1724755819433,3.28844553,154.15,154.12,0.04482092]
[1724755820532,0.04534553,154.15,154.12,0.04482092]
[1724755823640,0.04534553,154.15,154.08,5.1]
[1724755823839,3.53254553,154.15,154.08,5.1]
[1724755824730,3.53254553,154.15,154.1,0.04549742]
[1724755825237,3.2434,154.14,154.1,0.04549742]
[1724755825837,3.53254553,154.15,154.1,0.04549742]
[1724755826941,3.2437,154.13,154.1,0.04549742]
[1724755827143,6.70009585,154.15,154.1,0.04549742]
[1724755828446,3.53254553,154.15,154.1,0.04549742]
[1724755828847,3.2437,154.12,154.1,0.04549742]
[1724755832052,3.2437,154.12,154.08,3.2445]
[1724755832645,3.2439,154.11,154.08,3.2445]
[1724755832951,3.2439,154.11,154.08,3.2939258]
[1724755833158,3.28822544,154.11,154.08,3.2939258]
[1724755839850,3.28822544,154.11,154.08,0.0494258]
[1724755842758,0.04432544,154.11,154.01,1.7255]
[1724755842959,7.98,154.09,154.01,3.22819639]
[1724755843155,7.98,154.07,154.01,7.98]
[1724755843461,3.2453,154.05,154.01,11.2259]
[1724755843865,3.29455069,154.05,154.01,11.27403665]
[1724755845964,3.29455069,154.05,154.01,3.29403665]
[1724755847963,0.04925069,154.05,154.01,0.04813665]
[1724755848159,0.04925069,154.05,154.02,3.2457]
[1724755848670,0.04925069,154.05,154.02,19.94]
[1724755849264,3.29445069,154.05,154.02,19.94]
[1724755852878,0.04925069,154.05,154.02,23.1858]
[1724755853880,3.29445069,154.05,154.02,23.1858]
[1724755856276,0.04925069,154.05,154.04,19.94]
[1724755859083,0.04925069,154.05,154.01,0.04813665]
[1724755859680,3.2455,154.04,154.01,0.04813665]
[1724755860688,3.2458,154.02,154.01,0.04813665]
[1724755861886,3.2456,154.03,154.01,0.04813665]
[1724755865094,0.04925069,154.05,154.01,0.04813665]
[1724755865095,3.2458,154.02,154.01,0.04813665]
[1724755866197,23.24833034,154.06,153.98,23.23718514]
[1724755866698,3.2462,154.01,153.98,23.23718514]
[1724755867198,3.19838142,154.05,153.98,23.20331]
[1724755867387,6.4858,154.16,154.02,19.94]
[1724755867586,1.2847,154.09,154.04,19.94]
[1724755867992,3.2449,154.07,154.05,8.0125389]
[1724755868900,3.245,154.06,154.05,0.0425389]
[1724755869396,9.2547,154.09,154.01,5.06]
[1724755869596,9.2547,154.09,154.02,11.2158]
[1724755869597,1.2505,154.08,154.02,11.2158]
[1724755870192,3.2451,154.06,154.02,11.2158]
[1724755870387,0.04181259,154.06,154.02,11.2158]
[1724755870697,0.04181259,154.06,154.01,3.246]
[1724755870896,8.01181259,154.06,153.98,8.23598107]
[1724755871094,3.2459,154.02,153.99,7.97]
[1724755871292,0.04756014,154.02,153.98,3.2465]
[1724755871889,3.29346014,154.02,153.98,11.2165]
[1724755872093,0.04756014,154.02,153.98,3.2465]
[1724755872799,3.29346014,154.02,153.98,3.2465]
[1724755874495,3.246,154.01,153.97,23.1968]
[1724755874692,0.04756014,154.02,153.97,19.95]
[1724755875497,19.99756014,154.02,153.93,19.95]
[1724755875705,0.04539886,153.99,153.93,23.27725649]
[1724755876599,3.2467,153.98,153.94,3.2473]
[1724755876800,0.04539886,153.99,153.94,3.2473]
[1724755877800,0.04539886,153.99,153.93,19.95]
[1724755878005,0.04539886,153.99,153.92,3.2479]
[1724755878304,19.95,153.98,153.91,3.21222501]
[1724755878505,1.3427,153.97,153.9,3.2482]
[1724755878698,3.2477,153.94,153.9,3.2482]
[1724755879104,0.04759486,153.95,153.9,6.4181629]
[1724755879400,0.04759486,153.95,153.91,3.2481]
[1724755879606,0.04759486,153.95,153.91,23.1981]
[1724755879796,0.04759486,153.95,153.92,6.4379979]
[1724755880801,0.04759486,153.95,153.93,3.2477]
[1724755883205,0.04759486,153.95,153.92,6.4378979]
[1724755883401,0.04759486,153.95,153.92,3.2478]
[1724755883602,3.29489486,153.95,153.9,3.22289602]
[1724755883902,3.29489486,153.95,153.89,25.01]
[1724755884106,0.04759486,153.95,153.89,25.01]
[1724755884403,0.04759486,153.95,153.91,3.248]
[1724755884902,0.04759486,153.95,153.9,6.4753183]
[1724755885305,3.29489486,153.95,153.9,3.2271183]
[1724755885895,3.29489486,153.95,153.91,3.2481]
[1724755890009,0.04759486,153.95,153.91,19.95]
[1724755890402,0.04759486,153.95,153.92,3.2479]
[1724755890604,0.04759486,153.95,153.91,19.95]
[1724755890999,3.29489486,153.95,153.91,23.198]
[1724755891212,3.29489486,153.95,153.91,3.248]
[1724755892304,3.2477,153.94,153.9,6.4754183]
[1724755892503,0.04759486,153.95,153.89,25.01]
[1724755893407,0.04759486,153.95,153.9,3.21315572]
[1724755893807,3.2476,153.94,153.9,3.2483]
[1724755894015,3.2476,153.94,153.9,11.2383]
[1724755894903,3.2477,153.93,153.9,7.99]
[1724755896308,3.2477,153.93,153.89,3.2484]
[1724755897305,3.2477,153.93,153.9,11.22231644]
[1724755897906,0.04759486,153.95,153.9,11.22231644]
[1724755898302,3.2476,153.94,153.9,14.47051644]
[1724755900513,3.2477,153.93,153.9,11.2382]
[1724755901215,3.2475,153.94,153.9,7.99]
[1724755902008,3.2475,153.94,153.9,14.46910089]
[1724755902815,3.2475,153.94,153.9,14.50060761]
[1724755903407,3.2478,153.93,153.9,11.25240761]
[1724755903614,0.04759486,153.95,153.9,11.25240761]
[1724755904018,3.2476,153.94,153.9,14.50070761]
[1724755904419,0.04759486,153.95,153.91,7.99]
[1724755904618,0.04759486,153.95,153.9,3.26240761]
[1724755904619,0.04759486,153.95,153.94,7.99]
[1724755905021,0.04759486,153.95,153.94,11.2375]
[1724755905522,1.2778,154.01,153.98,7.99]
[1724755905919,1.2778,154.01,153.98,11.2366]
[1724755906112,1.2778,154.01,153.98,3.2466]
[1724755906520,1.32314908,154.01,153.98,3.29656181]
[1724755909114,4.49673908,154.01,153.9,3.26240761]
[1724755909315,19.95,153.97,153.87,25.01]
[1724755909923,3.2474,153.95,153.9,3.2483]
[1724755910223,0.04342007,153.94,153.9,3.2483]
[1724755911023,3.29092007,153.94,153.9,3.2483]
[1724755912217,3.29092007,153.94,153.9,6.56137822]
[1724755912418,3.29092007,153.94,153.9,3.2483]
[1724755913615,3.29092007,153.94,153.87,25.01]
[1724755913616,3.2477,153.93,153.89,3.2485]
[1724755913825,0.04342007,153.94,153.87,5.06]
[1724755915424,3.2479,153.92,153.88,3.2486]
[1724755916028,19.95,153.93,153.87,5.06]
[1724755916221,19.95,153.91,153.81,19.95]
[1724755916425,0.04658208,153.88,153.85,3.2492]
[1724755916726,0.04658208,153.88,153.85,3.30972032]
[1724755916922,0.04658208,153.88,153.84,3.2495]
[1724755917123,0.04658208,153.88,153.85,3.30939549]
[1724755917822,3.29538208,153.88,153.85,3.30939549]
[1724755919623,0.04658208,153.88,153.85,3.30939549]
[1724755919930,0.04658208,153.88,153.83,5.04]
[1724755920321,0.04658208,153.88,153.83,8.23706749]
[1724755920723,0.04658208,153.88,153.85,3.2493]
[1724755921424,0.04658208,153.88,153.86,3.249]
[1724755924226,0.04658208,153.88,153.85,3.2493]
[1724755925828,0.04658208,153.88,153.84,3.2495]
[1724755926126,3.29538208,153.88,153.83,3.19706749]
[1724755926317,3.29538208,153.88,153.83,3.2497]
[1724755926523,3.29538208,153.88,153.8,21.2247]
[1724755926524,19.95,153.87,153.8,1.2747]
[1724755926718,19.95,153.87,153.81,5.04]
[1724755926930,19.95,153.87,153.81,8.30660249]
[1724755927628,3.2497,153.84,153.81,3.26660249]
[1724755928024,3.29701712,153.84,153.81,3.26660249]
[1724755928826,3.29701712,153.84,153.8,3.2503]
[1724755929226,3.29701712,153.84,153.81,3.23613828]
[1724755930528,0.04731712,153.84,153.81,3.23613828]
[1724755930731,0.04731712,153.84,153.78,24.99]
[1724755931135,0.04731712,153.84,153.78,28.2238632]
[1724755931428,0.04731712,153.84,153.8,19.95]
[1724755931928,0.04731712,153.84,153.82,19.95]
[1724755932125,0.04731712,153.84,153.83,3.2498]
[1724755932629,3.2486,153.89,153.84,3.2495]
[1724755933133,3.2487,153.89,153.84,3.2495]
[1724755933527,0.04193899,153.88,153.85,0.04430897]
[1724755934129,3.29073899,153.88,153.85,0.04430897]
[1724755934329,0.04193899,153.88,153.85,0.04430897]
[1724755934728,3.249,153.87,153.85,0.04430897]
[1724755937730,3.2492,153.86,153.85,0.04430897]
[1724755938332,0.04193899,153.88,153.85,0.04430897]
[1724755938932,0.04193899,153.88,153.85,3.29360897]
[1724755939831,0.04193899,153.88,153.85,0.04430897]
[1724755940234,0.04193899,153.88,153.86,19.95]
[1724755940440,0.04193899,153.88,153.87,6.57528548]
[1724755941534,0.04193899,153.88,153.87,3.249]
[1724755944938,0.04193899,153.88,153.86,11.55765399]
[1724755945243,0.04193899,153.88,153.86,8.2892]
[1724755945540,0.04193899,153.88,153.85,0.04430897]
[1724755946037,3.29083899,153.88,153.85,0.04430897]
[1724755946233,0.04193899,153.88,153.85,0.04430897]
[1724755947534,3.29073899,153.88,153.85,0.04430897]
[1724755947929,0.04193899,153.88,153.85,0.04430897]
[1724755948636,3.2492,153.86,153.85,0.04430897]
[1724755955951,1.2988,153.87,153.85,0.04430897]
[1724755956645,4.5479,153.87,153.85,0.04430897]
[1724755959451,0.04193899,153.88,153.86,3.2491]
[1724755959659,0.04193899,153.88,153.85,0.04430897]
[1724755960150,0.04193899,153.88,153.86,3.2492]
[1724755961447,0.04193899,153.88,153.85,0.04430897]
[1724755961448,0.04193899,153.88,153.85,3.29360897]
[1724755961657,0.04193899,153.88,153.85,0.04430897]
[1724755961955,3.29073899,153.88,153.85,0.04430897]
[1724755962146,3.29073899,153.88,153.85,3.29370897]
[1724755962353,0.04193899,153.88,153.85,3.29370897]
[1724755962759,0.04193899,153.88,153.86,3.2492]
[1724755964254,0.04193899,153.88,153.87,3.249]
[1724755964454,0.04193899,153.88,153.85,0.04430897]
[1724755964756,0.04193899,153.88,153.86,3.249]
[1724755967958,0.04193899,153.88,153.85,0.04430897]
[1724755968557,0.04193899,153.88,153.86,3.30320662]
[1724755968758,0.04193899,153.88,153.85,3.29360897]
[1724755972270,3.29073899,153.88,153.85,0.04430897]
[1724755973673,0.04193899,153.88,153.85,3.29360897]
[1724755974775,3.29073899,153.88,153.85,3.29360897]
[1724755974970,3.29073899,153.88,153.85,0.04430897]
[1724755975367,0.04193899,153.88,153.86,3.22489925]
[1724755976078,0.04193899,153.88,153.86,11.20489925]
[1724755976376,0.04193899,153.88,153.86,14.45409925]
[1724755976577,0.04193899,153.88,153.86,11.2292]
[1724755978177,0.04193899,153.88,153.86,14.53403126]
[1724755978879,0.04193899,153.88,153.86,7.98]
[1724755979083,0.04193899,153.88,153.85,11.27360897]
[1724755979678,0.04193899,153.88,153.86,3.2491]
[1724755980179,3.29083899,153.88,153.85,0.04430897]
[1724755980383,0.04193899,153.88,153.85,0.04430897]
[1724755981283,3.29073899,153.88,153.85,8.02430897]
[1724755981880,3.29073899,153.88,153.85,11.27360897]
[1724755982079,0.04193899,153.88,153.85,11.27360897]
[1724755982676,0.04193899,153.88,153.85,0.04430897]
[1724755983182,8.02193899,153.88,153.85,0.04430897]
[1724755983382,7.98,153.87,153.85,0.04430897]
[1724755983678,3.2492,153.86,153.85,0.04430897]
[1724755986783,3.2496,153.84,153.83,3.36195491]
[1724755987082,3.2496,153.84,153.8,13.0]
[1724755987280,3.2496,153.84,153.81,4.66268098]
[1724755987474,3.2496,153.84,153.82,3.36245876]
[1724755987679,3.2496,153.84,153.8,16.2503]
[1724755987881,3.2496,153.84,153.81,4.6628198]
[1724755988085,3.29094719,153.84,153.8,16.2503]
[1724755988580,3.2498,153.83,153.81,3.36286286]
[1724755988786,3.2498,153.83,153.8,13.0]
[1724755989987,3.2498,153.83,153.8,7.98]
[1724755990289,8.02134719,153.84,153.78,7.98]
[1724755990586,7.98,153.83,153.79,1.30034189]
[1724755990786,7.98,153.82,153.73,1.3159]
[1724755990978,0.0454613,153.79,153.74,12.64467782]
[1724755991178,3.2962613,153.79,153.75,4.66467782]
[1724755991375,0.0454613,153.79,153.76,3.36403517]
[1724755991679,0.0454613,153.79,153.74,11.2316]
[1724755991875,3.2961613,153.79,153.74,11.2316]
[1724755993982,3.2961613,153.79,153.76,7.98]
[1724755995183,0.0454613,153.79,153.76,11.2312]
[1724755996188,0.0454613,153.79,153.77,3.251]
[1724756000391,0.0454613,153.79,153.77,11.2311]
[1724756000587,0.0454613,153.79,153.77,7.98]
[1724756000982,0.0454613,153.79,153.77,11.2309]
[1724756001192,0.0454613,153.79,153.73,3.27037686]
[1724756001193,0.0454613,153.79,153.75,7.98]
[1724756001883,0.0454613,153.79,153.75,11.19118125]
[1724756002390,3.2962613,153.79,153.76,3.2513]
[1724756002981,3.2962613,153.79,153.75,14.44268125]
[1724756003282,3.2962613,153.79,153.75,7.98]
[1724756003789,0.0454613,153.79,153.76,11.2312]
[1724756004588,0.0454613,153.79,153.77,6.48948985]
[1724756004786,0.0454613,153.79,153.77,3.251]
[1724756004987,0.0454613,153.79,153.77,11.231]
[1724756005389,0.0454613,153.79,153.78,3.25182098]
[1724756006191,0.0454613,153.79,153.78,3.2509]
[1724756006393,0.0454613,153.79,153.78,6.48722847]
[1724756007092,1.3252,153.84,153.78,3.23632847]
[1724756007292,1.3252,153.84,153.82,7.98]
[1724756008189,1.3252,153.84,153.81,3.33009304]
[1724756008190,0.04670459,153.85,153.83,7.98]
[1724756008886,0.04670459,153.85,153.84,3.2496]
[1724756009090,0.04670459,153.85,153.81,0.04304453]
[1724756009296,0.04670459,153.85,153.81,8.02304453]
[1724756009489,0.04670459,153.85,153.82,3.2498]
[1724756015797,0.04670459,153.85,153.81,11.27324453]
[1724756016198,0.04670459,153.85,153.81,3.29324453]
[1724756016400,0.04670459,153.85,153.81,11.27324453]
[1724756017296,3.2497,153.84,153.81,11.27324453]
[1724756017603,3.2497,153.84,153.81,3.29324453]
[1724756019502,3.2497,153.84,153.81,0.04304453]
[1724756020202,3.2497,153.84,153.82,7.98]
[1724756022004,3.29620459,153.85,153.82,7.98]
[1724756022211,3.29620459,153.85,153.82,11.23]
[1724756023304,3.2497,153.84,153.81,0.04304453]
[1724756025501,3.29610459,153.85,153.81,8.02304453]
[1724756025698,3.29610459,153.85,153.83,7.98]
[1724756027410,3.2496,153.84,153.81,8.02304453]
[1724756027708,3.2496,153.84,153.81,0.04304453]
[1724756028405,3.2496,153.84,153.81,3.29324453]
[1724756028904,0.04670459,153.85,153.81,0.04304453]
[1724756029408,3.2497,153.84,153.81,0.04304453]
[1724756031401,3.2497,153.84,153.81,8.02304453]
[1724756031606,3.2497,153.84,153.81,11.27324453]
[1724756032908,3.2497,153.84,153.81,8.02304453]
[1724756033202,3.2499,153.83,153.81,0.04304453]
[1724756033507,7.98,153.84,153.81,0.04304453]
[1724756033904,3.25,153.82,153.81,0.04304453]
[1724756034598,3.2496,153.84,153.81,0.04304453]
[1724756035009,3.2496,153.84,153.81,8.02304453]
[1724756035306,3.25,153.82,153.81,0.04304453]
[1724756035505,8.02670459,153.85,153.81,0.04304453]
[1724756035708,0.04670459,153.85,153.82,7.98]
[1724756035906,0.04670459,153.85,153.82,11.2299]
[1724756037517,3.29610459,153.85,153.82,11.2299]
[1724756038708,3.2496,153.84,153.82,7.98]
[1724756040023,3.29620459,153.85,153.82,7.98]
[1724756040218,0.04670459,153.85,153.82,7.98]
[1724756040614,3.2497,153.84,153.81,3.29324453]
[1724756041423,3.29610459,153.85,153.81,3.29324453]
[1724756041619,0.04670459,153.85,153.84,7.98]
[1724756042220,0.04670459,153.85,153.82,7.98]
[1724756044012,0.04670459,153.85,153.82,11.2299]
[1724756046320,0.04670459,153.85,153.81,0.04304453]
[1724756047022,3.2497,153.84,153.81,0.04304453]
[1724756047217,0.04670459,153.85,153.81,0.04304453]
[1724756047919,7.98,153.84,153.81,0.04304453]
[1724756048218,3.25,153.82,153.81,0.04304453]
[1724756049318,3.2507,153.79,153.76,7.98]
[1724756049512,7.98,153.82,153.76,11.2050879]
[1724756049712,7.98,153.82,153.76,3.2250879]
[1724756049912,7.98,153.82,153.7,1.2577]
[1724756049913,3.251,153.78,153.7,1.2577]
[1724756050120,7.98,153.8,153.73,11.2317]
[1724756050421,0.04428062,153.78,153.74,3.26928944]
[1724756051324,3.29528062,153.78,153.74,6.52098944]
[1724756051524,3.29528062,153.78,153.75,7.98]
[1724756052121,3.29528062,153.78,153.75,11.25609261]
[1724756052322,0.04428062,153.78,153.75,14.50749261]
[1724756052517,0.04428062,153.78,153.76,7.98]
[1724756053220,3.29518062,153.78,153.75,11.25609261]
[1724756054123,3.2512,153.77,153.75,11.25609261]
[1724756056628,3.2512,153.77,153.75,7.98]
[1724756056836,3.2512,153.77,153.75,11.28383962]
[1724756057135,0.04428062,153.78,153.76,7.98]
[1724756058335,0.04428062,153.78,153.76,11.2312]
[1724756058839,0.04428062,153.78,153.77,3.2511]
[1724756059733,0.04428062,153.78,153.76,11.2312]
[1724756061635,0.04428062,153.78,153.76,7.98]
[1724756063333,3.2511,153.77,153.75,3.30383962]
[1724756063534,3.2511,153.77,153.74,7.98]
[1724756063839,3.2511,153.77,153.74,11.2922988]
[1724756064939,0.04428062,153.78,153.76,7.98]
[1724756065138,0.04428062,153.78,153.77,7.98]
[1724756065333,0.04428062,153.78,153.77,11.28872216]
[1724756065845,0.04428062,153.78,153.77,14.53982216]
[1724756066838,3.2498,153.84,153.77,11.33714145]
[1724756067040,3.2498,153.84,153.8,7.98]
[1724756067838,3.9222,153.88,153.83,7.98]
[1724756068043,0.04118604,153.84,153.83,3.2498]
[1724756068347,0.04118604,153.84,153.83,11.2298]
[1724756070440,0.04118604,153.84,153.83,7.98]
[1724756076342,0.04118604,153.84,153.82,8.02777154]
[1724756076937,3.2498,153.83,153.82,0.04777154]
[1724756079143,3.2504,153.81,153.78,4.96]
[1724756081550,3.2501,153.82,153.78,8.2107]
[1724756082045,3.2499,153.83,153.79,3.2505]
[1724756082249,0.04118604,153.84,153.79,11.2305]
[1724756082645,3.25,153.82,153.79,7.98]
[1724756083041,8.02118604,153.84,153.78,4.96]
[1724756083846,3.2503,153.81,153.78,4.96]
[1724756087450,7.98,153.82,153.74,7.98]
[1724756087649,0.0495523,153.8,153.74,7.98]
[1724756087850,3.251,153.78,153.74,7.98]
[1724756088650,3.251,153.78,153.74,11.2315]
[1724756094354,3.2512,153.77,153.74,7.98]
[1724756094953,9.3870523,153.8,153.74,7.98]
[1724756094954,3.2513,153.76,153.74,7.98]
[1724756095157,3.2513,153.76,153.73,6.45659933]
[1724756095158,3.2513,153.76,153.73,11.18469933]
[1724756095761,7.98,153.75,153.58,6.5101]
[1724756095962,7.98,153.75,153.68,7.98]
[1724756095963,0.0477391,153.72,153.68,7.98]
[1724756096159,0.0477391,153.72,153.69,3.36571046]
[1724756097162,3.2999391,153.72,153.68,11.2328]
[1724756097360,0.0477391,153.72,153.68,11.2328]
[1724756097564,0.0477391,153.72,153.69,3.2527]
[1724756098565,0.0477391,153.72,153.7,7.98]
[1724756099159,0.0477391,153.72,153.7,11.2324]
[1724756101554,0.0477391,153.72,153.71,11.2323]
[1724756101958,0.0477391,153.72,153.7,11.2325]
[1724756104365,0.0477391,153.72,153.7,3.2525]
[1724756106667,0.0477391,153.72,153.71,3.2523]
[1724756106873,0.0477391,153.72,153.71,7.98]
[1724756107967,0.0477391,153.72,153.69,12.92]
[1724756108168,0.0477391,153.72,153.69,7.98]
[1724756108368,3.2998391,153.72,153.69,7.98]
[1724756108972,0.0477391,153.72,153.68,16.1929]
[1724756109863,0.0477391,153.72,153.68,12.94]
[1724756110172,0.0477391,153.72,153.68,4.96]
[1724756110572,3.2525,153.71,153.68,4.96]
[1724756111177,3.2524,153.71,153.68,4.96]
[1724756111380,0.0477391,153.72,153.68,4.96]
[1724756111574,8.0277391,153.72,153.67,3.2531]
[1724756111871,8.0277391,153.72,153.66,60.79243879]
[1724756112276,8.0277391,153.72,153.66,55.83243879]
[1724756112575,3.253,153.69,153.66,55.83243879]
[1724756112968,3.253,153.69,153.66,3.328765]
[1724756113175,3.253,153.68,153.65,4.96]
[1724756113375,7.98,153.67,153.47,2.98801102]
[1724756113678,3.2531,153.68,153.63,7.98]
[1724756113881,0.0409974,153.67,153.63,7.98]
[1724756114376,3.2941974,153.67,153.64,3.22042502]
[1724756114578,0.0409974,153.67,153.63,7.98]
[1724756115076,0.0409974,153.67,153.64,3.31217688]
[1724756115278,0.0409974,153.67,153.66,7.98]
[1724756115979,0.0409974,153.67,153.66,11.18890111]
[1724756116387,0.0409974,153.67,153.66,14.44230111]
[1724756116683,3.2524,153.71,153.66,11.18890111]
[1724756116879,3.2524,153.71,153.69,7.98]
[1724756117080,3.2524,153.71,153.67,7.98]
[1724756117792,0.04374676,153.71,153.69,7.98]
[1724756120496,0.04374676,153.71,153.7,11.2326]
[1724756122600,0.04374676,153.71,153.68,4.96]
[1724756122792,0.04374676,153.71,153.69,7.98]
[1724756123190,0.04374676,153.71,153.7,3.2526]
[1724756123395,1.3433,153.76,153.69,7.98]
[1724756123699,3.2512,153.77,153.73,7.98]
[1724756124196,11.9116,153.8,153.73,7.98]
[1724756124395,3.2513,153.76,153.75,0.04572765]
[1724756128601,3.2511,153.77,153.75,0.04572765]
[1724756128802,0.04718061,153.78,153.75,0.04572765]